bitfinex/quotes_BTCUSD_20250822
["timestamp","ask_amount","ask_price","bid_price","bid_amount"]
[1755845366086,1.21053686,113210.0,113200.0,0.15254485]
[1755845366291,1.21053686,113210.0,113200.0,0.00014485]
[1755845366906,1.23710686,113210.0,113200.0,0.00014485]
[1755845368476,0.51669405,113190.0,113180.0,0.2235]
[1755845368675,1.5322629,113190.0,113180.0,0.2235]
[1755845369103,1.5322629,113190.0,113180.0,0.00318]
[1755845369287,1.5322629,113190.0,113180.0,0.15554]
[1755845370376,1.5332629,113190.0,113180.0,0.15554]
[1755845370602,1.62013255,113190.0,113180.0,0.00318]
[1755845370788,0.17672528,113170.0,113160.0,0.4458203]
[1755845371068,0.85377118,113170.0,113160.0,0.42054993]
[1755845371939,0.86760286,113170.0,113160.0,0.42372993]
[1755845372181,0.86760286,113170.0,113160.0,0.42572993]
[1755845372374,0.52907991,113170.0,113160.0,0.42572993]
[1755845372803,0.52907991,113170.0,113160.0,0.42972993]
[1755845373626,0.5518102,113170.0,113160.0,0.42972993]
[1755845374082,0.34532791,113170.0,113160.0,0.42972993]
[1755845374378,0.52205319,113170.0,113160.0,0.42972993]
[1755845375166,0.52205319,113170.0,113160.0,0.69642993]
[1755845376991,0.52205319,113170.0,113160.0,0.62599189]
[1755845377460,0.86057614,113170.0,113160.0,0.62599189]
[1755845378212,0.86057614,113170.0,113160.0,0.23168488]
[1755845379136,0.5518102,113170.0,113160.0,0.23168488]
[1755845379353,0.89033315,113170.0,113160.0,0.23168488]
[1755845379579,0.5518102,113170.0,113160.0,0.23168488]
[1755845383988,0.5518102,113170.0,113160.0,0.49838488]
[1755845385392,0.21328725,113170.0,113160.0,0.67512577]
[1755845385609,0.5518102,113170.0,113160.0,0.76201052]
[1755845385836,0.03656197,113170.0,113160.0,0.77945954]
[1755845386074,0.02273029,113170.0,113160.0,0.80603054]
[1755845386295,0.02273029,113170.0,113160.0,0.89290019]
[1755845386480,0.51524672,113180.0,113170.0,0.1941743]
[1755845386685,0.51524672,113180.0,113170.0,0.28105905]
[1755845386907,0.51524672,113180.0,113170.0,0.28631905]
[1755845388000,0.33852295,113180.0,113170.0,0.28631905]
[1755845388155,0.33852295,113180.0,113170.0,0.35245618]
[1755845388800,0.53816705,113180.0,113170.0,0.35245618]
[1755845389186,0.37528795,113180.0,113170.0,0.35245618]
[1755845389951,0.37528795,113180.0,113170.0,0.62015618]
[1755845390179,0.036765,113180.0,113170.0,0.62015618]
[1755845390591,0.036765,113180.0,113170.0,0.65522318]
[1755845395479,0.37528795,113180.0,113170.0,0.65522318]
[1755845395676,0.55199761,113180.0,113170.0,0.71403905]
[1755845396084,0.37528795,113180.0,113170.0,0.70553905]
[1755845396292,0.55199761,113180.0,113170.0,0.70553905]
[1755845400912,0.37528795,113180.0,113170.0,0.70553905]
[1755845401361,0.55199761,113180.0,113170.0,0.70553905]
[1755845401767,0.55199761,113180.0,113170.0,0.52881377]
[1755845401956,0.55199761,113180.0,113170.0,0.70553905]
[1755845402524,0.37528795,113180.0,113170.0,0.7924087]
[1755845403354,0.55199761,113180.0,113170.0,0.7924087]
[1755845403804,0.37528795,113180.0,113170.0,0.7924087]
[1755845404019,0.036765,113180.0,113170.0,0.70553905]
[1755845404228,0.37528795,113180.0,113170.0,0.70553905]
[1755845404760,0.55199761,113180.0,113170.0,0.70553905]
[1755845405591,0.37528795,113180.0,113170.0,0.70553905]
[1755845407478,0.036765,113180.0,113170.0,0.70553905]
[1755845407704,0.01383056,113180.0,113170.0,0.8189767]
[1755845408350,0.33852295,113190.0,113180.0,0.19415868]
[1755845408507,0.33852295,113190.0,113180.0,0.28623343]
[1755845409158,0.33852295,113190.0,113180.0,0.31279943]
[1755845409330,0.33852295,113190.0,113180.0,0.39966908]
[1755845409821,0.33852295,113190.0,113180.0,0.66636908]
[1755845410641,0.33852295,113190.0,113180.0,0.73432908]
[1755845411355,0.33902295,113200.0,113190.0,0.19414307]
[1755845411573,0.51570139,113200.0,113190.0,0.43529782]
[1755845411772,0.51570139,113200.0,113190.0,0.43745782]
[1755845411976,0.53565787,113200.0,113190.0,0.43745782]
[1755845412177,0.53515787,113200.0,113190.0,0.43745782]
[1755845412340,0.53515787,113200.0,113190.0,0.5160114]
[1755845412768,0.53515787,113200.0,113190.0,0.5170114]
[1755845414164,0.53515787,113200.0,113190.0,0.43845782]
[1755845415468,0.19663492,113200.0,113190.0,0.43845782]
[1755845415642,0.53515787,113200.0,113190.0,0.43845782]
[1755845416389,0.54898596,113200.0,113190.0,0.43845782]
[1755845416585,0.54898596,113200.0,113190.0,0.70515782]
[1755845416800,0.54898596,113200.0,113190.0,0.52846377]
[1755845417009,0.54898596,113200.0,113190.0,0.37506377]
[1755845417215,0.54898596,113200.0,113190.0,0.52606377]
[1755845418243,0.53515787,113200.0,113190.0,0.52606377]
[1755845418829,0.53515787,113200.0,113190.0,0.52303377]
[1755845419092,0.90122479,113200.0,113190.0,0.41862]
[1755845419315,0.53515787,113200.0,113190.0,0.41862]
[1755845419975,0.87368082,113200.0,113190.0,0.41862]
[1755845420198,0.53515787,113200.0,113190.0,0.41862]
[1755845420410,0.87368082,113200.0,113190.0,0.41866]
[1755845420620,1.21368082,113200.0,113190.0,0.41866]
[1755845420835,1.21368082,113200.0,113190.0,0.41766]
[1755845421250,0.53663492,113200.0,113190.0,0.41766]
[1755845421493,0.87515787,113200.0,113190.0,0.41766]
[1755845421895,0.87615787,113200.0,113190.0,0.41766]
[1755845422541,0.87615787,113200.0,113190.0,0.15096]
[1755845422759,0.87715787,113200.0,113190.0,0.15312]
[1755845422966,0.87715787,113200.0,113190.0,0.204982]
[1755845423807,0.87615787,113200.0,113190.0,0.15612]
[1755845424040,0.87715787,113200.0,113190.0,0.15612]
[1755845424258,0.53763492,113200.0,113190.0,0.15612]
[1755845424495,0.87615787,113200.0,113190.0,0.15612]
[1755845424701,0.01995648,113200.0,113190.0,0.70384782]
[1755845424921,0.19932439,113210.0,113200.0,0.17667844]
[1755845425158,0.35235137,113210.0,113200.0,0.28617221]
[1755845425374,0.01382842,113210.0,113200.0,0.28617221]
[1755845426097,0.01391368,113210.0,113200.0,0.28617221]
[1755845426260,0.03352396,113210.0,113200.0,0.28617221]
[1755845426435,0.01391368,113210.0,113200.0,0.28617221]
[1755845426654,0.01391368,113210.0,113200.0,0.29954283]
[1755845427099,0.35243663,113210.0,113200.0,0.29954283]
[1755845428310,0.35243663,113210.0,113200.0,0.56624283]
[1755845428515,0.33860821,113210.0,113200.0,0.56724283]
[1755845429344,0.3583103,113210.0,113200.0,0.56724283]
[1755845430188,0.01978735,113210.0,113200.0,0.56724283]
[1755845430613,0.01978735,113210.0,113200.0,0.59380283]
[1755845432673,0.3583103,113210.0,113200.0,0.59380283]
[1755845432888,0.53497313,113210.0,113200.0,0.59380283]
[1755845433103,0.53497313,113210.0,113200.0,0.63306979]
[1755845433730,0.53497313,113210.0,113200.0,0.45639135]
[1755845434381,0.53497313,113210.0,113200.0,0.63306979]
[1755845434796,0.53497313,113210.0,113200.0,0.57368073]
[1755845435648,0.53497313,113210.0,113200.0,0.57068073]
[1755845435870,0.53497313,113210.0,113200.0,0.57368073]
[1755845436302,0.33852295,113210.0,113200.0,0.57368073]
[1755845436534,0.5348997,113210.0,113200.0,0.57368073]
[1755845440915,0.5348997,113210.0,113200.0,0.57068073]
[1755845441128,0.5348997,113210.0,113200.0,0.57368073]
[1755845441769,0.5348997,113210.0,113200.0,0.57584073]
[1755845442252,0.5348997,113210.0,113200.0,0.75251917]
[1755845442463,0.35823687,113210.0,113200.0,0.83938882]
[1755845442677,0.5348997,113210.0,113200.0,0.83938882]
[1755845446455,0.5348997,113210.0,113200.0,0.83088882]
[1755845447945,0.29794894,113210.0,113200.0,0.83088882]
[1755845448589,0.31814861,113210.0,113200.0,0.83088882]
[1755845448897,0.33197525,113210.0,113200.0,0.83088882]
[1755845454061,0.03402631,113210.0,113200.0,0.83088882]
[1755845455257,0.03402631,113210.0,113200.0,0.74401917]
[1755845455258,0.21068914,113210.0,113200.0,0.74401917]
[1755845455470,0.03402631,113210.0,113200.0,0.74401917]
[1755845457262,0.03402631,113210.0,113200.0,0.81197917]
[1755845459265,0.21068914,113210.0,113200.0,0.81197917]
[1755845459498,0.21068914,113210.0,113200.0,0.89884882]
[1755845460462,0.03402631,113210.0,113200.0,0.89884882]
[1755845461583,0.21068914,113210.0,113200.0,0.89884882]
[1755845461832,0.54921209,113210.0,113200.0,0.72217038]
[1755845462058,0.54921209,113210.0,113200.0,0.72213038]
[1755845462540,0.54921209,113210.0,113200.0,0.4865]
[1755845463803,0.88921209,113210.0,113200.0,0.4865]
[1755845464025,0.88921209,113210.0,113200.0,0.2188]
[1755845464248,1.22773504,113210.0,113200.0,0.06796]
[1755845464521,1.25551052,113210.0,113200.0,0.15084]
[1755845464743,0.17669405,113190.0,113180.0,0.06796]
[1755845464962,0.85373995,113190.0,113180.0,0.21876]
[1755845465618,0.86756926,113190.0,113180.0,0.21876]
[1755845466710,0.86756926,113190.0,113180.0,0.22185]
[1755845468243,0.86756926,113190.0,113180.0,0.22285]
[1755845469091,0.86756926,113190.0,113180.0,0.06896]
[1755845469303,0.86756926,113190.0,113180.0,0.2198]
[1755845471746,0.86756926,113190.0,113180.0,0.22289]
[1755845477466,0.86756926,113190.0,113180.0,0.22488]
[1755845478689,0.86756926,113190.0,113180.0,0.49158]
[1755845480176,0.86756926,113190.0,113180.0,0.48959]
[1755845480934,0.86756926,113190.0,113180.0,0.49158]
[1755845482366,0.86756926,113190.0,113180.0,0.48959]
[1755845485566,0.86756926,113190.0,113180.0,0.4865]
[1755845486652,0.86756926,113190.0,113180.0,0.48966]
[1755845487451,0.86756926,113190.0,113180.0,0.48866]
[1755845487945,1.20756926,113190.0,113180.0,0.06796]
[1755845488157,1.01958928,113190.0,113180.0,0.21876]
[1755845488364,1.19373995,113190.0,113180.0,0.21876]
[1755845488754,1.19373995,113190.0,113180.0,0.1508]
[1755845490204,1.19473995,113190.0,113180.0,0.1508]
[1755845491157,1.19573995,113190.0,113180.0,0.1508]
[1755845491569,1.20957061,113190.0,113180.0,0.1508]
[1755845492653,1.20957061,113190.0,113180.0,0.15599]
[1755845493265,1.20957061,113190.0,113180.0,0.154]
[1755845493915,1.20957061,113190.0,113180.0,0.15599]
[1755845497357,1.20957061,113190.0,113180.0,0.15603]
[1755845497627,1.20957061,113190.0,113180.0,0.15404]
[1755845499851,1.20957061,113190.0,113180.0,0.15603]
[1755845501029,0.53252471,113190.0,113180.0,0.171633]
[1755845501232,0.53104766,113190.0,113180.0,0.33273966]
[1755845501645,0.53104766,113190.0,113180.0,0.43707343]
[1755845502068,0.53004766,113190.0,113180.0,0.43707343]
[1755845502449,0.52904766,113190.0,113180.0,0.43707343]
[1755845502677,0.52904766,113190.0,113180.0,0.5011098]
[1755845503291,0.52904766,113190.0,113180.0,0.26136377]
[1755845503658,0.86757061,113190.0,113180.0,0.26136377]
[1755845504543,0.86757061,113190.0,113180.0,0.15703]
[1755845504746,0.86757061,113190.0,113180.0,0.15504]
[1755845505364,0.86757061,113190.0,113180.0,0.42174]
[1755845505572,0.86757061,113190.0,113180.0,0.42273]
[1755845505789,0.19152471,113190.0,113180.0,0.464904]
[1755845505993,0.86857061,113190.0,113180.0,0.464904]
[1755845506123,0.86757061,113190.0,113180.0,0.464904]
[1755845506325,0.52904766,113190.0,113180.0,0.72849841]
[1755845506527,0.52904766,113190.0,113180.0,0.74594743]
[1755845506754,0.19052471,113190.0,113180.0,0.74594743]
[1755845507003,0.52904766,113190.0,113180.0,0.74594743]
[1755845508650,0.33852295,113190.0,113180.0,0.74594743]
[1755845509077,0.35235234,113190.0,113180.0,0.74694743]
[1755845509535,0.52904639,113190.0,113180.0,0.74694743]
[1755845510265,0.52904639,113190.0,113180.0,0.70477343]
[1755845511856,0.52652639,113190.0,113180.0,0.70477343]
[1755845512667,0.52904639,113190.0,113180.0,0.74439767]
[1755845515571,0.52904639,113190.0,113180.0,0.81235767]
[1755845515980,0.86756934,113190.0,113180.0,0.48484801]
[1755845516207,0.86756934,113190.0,113180.0,0.63552801]
[1755845517315,0.86756934,113190.0,113180.0,0.48958]
[1755845518111,0.86756934,113190.0,113180.0,0.48858]
[1755845520668,0.86756934,113190.0,113180.0,0.540258]
[1755845520887,0.86756934,113190.0,113180.0,0.49055]
[1755845521312,0.86756934,113190.0,113180.0,0.59488377]
[1755845521734,0.52904639,113190.0,113180.0,0.59488377]
[1755845522463,0.52904639,113190.0,113180.0,0.48538]
[1755845522690,0.52904639,113190.0,113180.0,0.48834]
[1755845523343,0.52904639,113190.0,113180.0,0.49031]
[1755845523566,0.52904639,113190.0,113180.0,0.55681653]
[1755845524457,0.52904639,113190.0,113180.0,0.49031]
[1755845525016,0.19052344,113190.0,113180.0,0.49031]
[1755845525234,0.52904639,113190.0,113180.0,0.49031]
[1755845526517,0.32323876,113190.0,113180.0,0.49031]
[1755845526954,0.3370684,113190.0,113180.0,0.49031]
[1755845527179,0.51376245,113190.0,113180.0,0.49031]
[1755845528382,0.51376245,113190.0,113180.0,0.55701353]
[1755845530879,0.51376245,113190.0,113180.0,0.41742]
[1755845531114,0.8522854,113190.0,113180.0,0.41742]
[1755845532412,0.8522854,113190.0,113180.0,0.42038]
[1755845533053,0.8522854,113190.0,113180.0,0.42235]
[1755845533917,0.8522854,113190.0,113180.0,0.42038]
[1755845534920,0.8522854,113190.0,113180.0,0.15368]
[1755845535661,0.8522854,113190.0,113180.0,0.15072]
[1755845537107,1.1922854,113190.0,113180.0,0.15072]
[1755845537338,1.17845576,113190.0,113180.0,0.15072]
[1755845537548,1.17845576,113190.0,113180.0,0.15068]
[1755845537771,1.17845576,113190.0,113180.0,4e-05]
[1755845537989,1.20645794,113190.0,113180.0,0.15068]
[1755845538257,1.17845576,113190.0,113180.0,0.15068]
[1755845538482,1.17945576,113190.0,113180.0,0.15068]
[1755845538934,1.18045576,113190.0,113180.0,0.15068]
[1755845539146,1.19428697,113190.0,113180.0,0.15068]
[1755845540052,1.19528697,113190.0,113180.0,4e-05]
[1755845540271,1.19728697,113190.0,113180.0,4e-05]
[1755845541563,1.68644992,113190.0,113180.0,4e-05]
[1755845547346,1.53580992,113190.0,113180.0,4e-05]
[1755845547551,1.68644992,113190.0,113180.0,4e-05]
[1755845551784,1.53580992,113190.0,113180.0,4e-05]
[1755845551984,1.21257116,113190.0,113180.0,0.00528]
[1755845552200,1.36321116,113190.0,113180.0,0.00528]
[1755845554143,1.70173411,113190.0,113180.0,0.00528]
[1755845554342,1.70173411,113190.0,113180.0,0.00317]
[1755845559955,1.70173411,113190.0,113180.0,0.00528]
[1755845561321,1.21257116,113190.0,113180.0,0.00528]
[1755845561525,1.36321116,113190.0,113180.0,0.00528]
[1755845561945,1.21257116,113190.0,113180.0,0.00528]
[1755845562153,1.36321116,113190.0,113180.0,0.00528]
[1755845566978,1.21257116,113190.0,113180.0,0.00528]
[1755845567324,1.36317116,113190.0,113180.0,0.00528]
[1755845567754,1.21257116,113190.0,113180.0,0.00528]
[1755845567958,1.36317116,113190.0,113180.0,0.00528]
[1755845571552,1.21257116,113190.0,113180.0,0.00528]
[1755845571754,1.36317116,113190.0,113180.0,0.00528]
[1755845572410,1.21257116,113190.0,113180.0,0.00528]
[1755845573480,0.87257116,113190.0,113180.0,0.00528]
[1755845573696,1.21257116,113190.0,113180.0,0.00528]
[1755845574323,1.20757116,113190.0,113180.0,0.00528]
[1755845574539,1.20957116,113190.0,113180.0,0.00528]
[1755845575084,1.19573995,113190.0,113180.0,0.00528]
[1755845575718,1.19473995,113190.0,113180.0,0.00528]
[1755845576135,1.19573995,113190.0,113180.0,0.00528]
[1755845576980,1.20957025,113190.0,113180.0,0.00528]
[1755845577878,1.20709025,113190.0,113180.0,0.00528]
[1755845579337,1.20709025,113190.0,113180.0,0.27198]
[1755845579949,1.20709025,113190.0,113180.0,0.31685027]
[1755845580976,1.20709025,113190.0,113180.0,0.27198]
[1755845581392,1.20709025,113190.0,113180.0,0.4225]
[1755845581734,1.17476914,113190.0,113180.0,0.4225]
[1755845582381,1.17476914,113190.0,113180.0,0.26987]
[1755845582781,1.17476914,113190.0,113180.0,0.27182]
[1755845584262,1.17476914,113190.0,113180.0,0.314054]
[1755845584488,1.17476914,113190.0,113180.0,0.27182]
[1755845598283,0.8710473,113190.0,113180.0,0.27182]
[1755845598494,1.20869601,113190.0,113180.0,0.27182]
[1755845599386,1.20869601,113190.0,113180.0,0.26987]
[1755845599596,1.20869601,113190.0,113180.0,0.41718]
[1755845600004,1.20869601,113190.0,113180.0,0.42019]
[1755845602656,1.20869601,113190.0,113180.0,0.42233]
[1755845602867,1.20869601,113190.0,113180.0,0.15563]
[1755845604751,1.20869601,113190.0,113180.0,0.15349]
[1755845605557,1.20869601,113190.0,113180.0,0.15563]
[1755845606770,1.02096148,113190.0,113180.0,0.15349]
[1755845607954,0.86869601,113190.0,113180.0,0.15563]
[1755845610775,1.20869601,113190.0,113180.0,0.15563]
[1755845610990,0.53252435,113190.0,113180.0,0.171193]
[1755845611213,0.87061018,113190.0,113180.0,0.171193]
[1755845611419,0.0158303,113190.0,113180.0,0.45223643]
[1755845611654,0.33908583,113190.0,113180.0,0.45223643]
[1755845611865,0.51477988,113190.0,113180.0,0.45223643]
[1755845612063,0.51577988,113190.0,113180.0,0.45223643]
[1755845612287,0.33908583,113190.0,113180.0,0.45223643]
[1755845612456,0.33808583,113190.0,113180.0,0.45223643]
[1755845612857,0.33808583,113190.0,113180.0,0.45323643]
[1755845613117,0.33808583,113190.0,113180.0,0.45223643]
[1755845613329,0.67617166,113190.0,113180.0,0.45423643]
[1755845613532,0.85286571,113190.0,113180.0,0.45423643]
[1755845613734,0.85286571,113190.0,113180.0,0.48080443]
[1755845613942,0.86669486,113190.0,113180.0,0.46524143]
[1755845614356,0.86661356,113190.0,113180.0,0.46524143]
[1755845615223,0.86661356,113190.0,113180.0,0.46624143]
[1755845615893,0.68991951,113190.0,113180.0,0.46624143]
[1755845616046,0.86661356,113190.0,113180.0,0.46624143]
[1755845616821,0.85278441,113190.0,113180.0,0.46624143]
[1755845618514,0.85278441,113190.0,113180.0,0.53420143]
[1755845620007,0.86661354,113190.0,113180.0,0.53420143]
[1755845620425,0.68991949,113190.0,113180.0,0.53420143]
[1755845620655,0.68991949,113190.0,113180.0,0.80090143]
[1755845620863,0.68991949,113190.0,113180.0,0.88777108]
[1755845621234,0.35187431,113190.0,113180.0,0.88777108]
[1755845622292,0.68991949,113190.0,113180.0,0.88777108]
[1755845625650,0.68991949,113190.0,113180.0,0.92662298]
[1755845626066,0.35187431,113190.0,113180.0,0.92662298]
[1755845627604,0.01382913,113190.0,113180.0,0.92662298]
[1755845628044,0.33854518,113200.0,113190.0,0.17669405]
[1755845628253,0.33854518,113200.0,113190.0,0.35244845]
[1755845628452,0.33804518,113200.0,113190.0,0.35554845]
[1755845628865,0.33804518,113200.0,113190.0,0.38211145]
[1755845629522,0.33804518,113200.0,113190.0,0.64981145]
[1755845629933,0.35778056,113210.0,113200.0,0.19412746]
[1755845630142,0.87251435,113210.0,113200.0,0.50143287]
[1755845630354,0.87251435,113210.0,113200.0,0.50453287]
[1755845631984,0.87251435,113210.0,113200.0,0.50553287]
[1755845633192,0.53446917,113210.0,113200.0,0.50553287]
[1755845633411,0.01382772,113210.0,113200.0,0.77223287]
[1755845633857,0.01382772,113210.0,113200.0,0.79879287]
[1755845634077,0.01382772,113210.0,113200.0,1.13683805]
[1755845634318,0.01382772,113210.0,113200.0,0.79779287]
[1755845634525,0.01382772,113210.0,113200.0,1.13555265]
[1755845634733,0.01382772,113210.0,113200.0,1.13855265]
[1755845635584,0.01382772,113210.0,113200.0,1.14055265]
[1755845636404,0.01382772,113210.0,113200.0,0.80279287]
[1755845637339,0.0262453,113220.0,113210.0,0.17666283]
[1755845637551,0.51439328,113230.0,113220.0,0.19409625]
[1755845637787,0.51439328,113230.0,113220.0,0.436281]
[1755845637994,0.51439328,113230.0,113220.0,0.462839]
[1755845639255,0.51439328,113230.0,113220.0,0.47325192]
[1755845639457,0.51439328,113230.0,113220.0,0.73995192]
[1755845639656,0.51439328,113230.0,113220.0,0.47325192]
[1755845639895,0.54089802,113230.0,113220.0,0.47325192]
[1755845640323,0.37808983,113230.0,113220.0,0.47325192]
[1755845640735,0.55472146,113230.0,113220.0,0.47325192]
[1755845641547,0.55472146,113230.0,113220.0,0.47425192]
[1755845642831,0.55472146,113230.0,113220.0,0.47525192]
[1755845645225,0.55220146,113230.0,113220.0,0.47525192]
[1755845645584,0.55220146,113230.0,113220.0,0.51514074]
[1755845646558,0.21444121,113230.0,113220.0,0.51514074]
[1755845646769,0.55220146,113230.0,113220.0,0.51514074]
[1755845646974,0.21444121,113230.0,113220.0,0.51514074]
[1755845647161,0.55220146,113230.0,113220.0,0.51514074]
[1755845648172,0.55220146,113230.0,113220.0,0.33841351]
[1755845648370,0.55220146,113230.0,113220.0,0.32800059]
[1755845648577,0.55220146,113230.0,113220.0,0.50464782]
[1755845649404,0.55220146,113230.0,113220.0,0.32800059]
[1755845650179,0.55220146,113230.0,113220.0,0.59470059]
[1755845650771,0.55220146,113230.0,113220.0,0.59270059]
[1755845653301,0.55220146,113230.0,113220.0,0.77134782]
[1755845653609,0.55220146,113230.0,113220.0,0.59470059]
[1755845655039,0.21444121,113230.0,113220.0,0.59470059]
[1755845655182,0.55220146,113230.0,113220.0,0.77134782]
[1755845655809,0.55220146,113230.0,113220.0,0.59470059]
[1755845657313,0.55144116,113230.0,113220.0,0.59470059]
[1755845657516,0.55144116,113230.0,113220.0,0.77134782]
[1755845658148,0.38053832,113230.0,113220.0,0.59470059]
[1755845658354,0.38056352,113230.0,113220.0,0.59470059]
[1755845658775,0.04277807,113230.0,113220.0,0.77134782]
[1755845658981,0.38056352,113230.0,113220.0,0.85821747]
[1755845659844,0.40690006,113230.0,113220.0,0.85821747]
[1755845660067,0.40690006,113230.0,113220.0,0.68157024]
[1755845660892,0.40690006,113230.0,113220.0,0.65501224]
[1755845661103,0.40690006,113230.0,113220.0,0.50489224]
[1755845661305,0.40690006,113230.0,113220.0,0.56806259]
[1755845661306,0.74468551,113230.0,113220.0,0.56806259]
[1755845662275,0.74468551,113230.0,113220.0,0.74470982]
[1755845662487,0.74468551,113230.0,113220.0,0.56806259]
[1755845663738,0.06911461,113230.0,113220.0,0.56806259]
[1755845663959,0.74468551,113230.0,113220.0,0.56806259]
[1755845667377,0.74468551,113230.0,113220.0,0.74470982]
[1755845669723,0.74468551,113230.0,113220.0,0.56806259]
[1755845671030,0.74468551,113230.0,113220.0,0.74470982]
[1755845671355,0.74468551,113230.0,113220.0,0.56806259]
[1755845673498,1.08247096,113230.0,113220.0,0.74470982]
[1755845673920,0.74468551,113230.0,113220.0,0.74470982]
[1755845674204,1.08468551,113230.0,113220.0,0.74470982]
[1755845675488,1.08468551,113230.0,113220.0,0.81820929]
[1755845676498,1.08468551,113230.0,113220.0,0.74470982]
[1755845677770,1.08468551,113230.0,113220.0,0.56806259]
[1755845679768,1.08468551,113230.0,113220.0,0.74470982]
[1755845680481,1.08468551,113230.0,113220.0,0.56806259]
[1755845682327,1.42247096,113230.0,113220.0,0.52617377]
[1755845682530,1.42247096,113230.0,113220.0,0.52307377]
[1755845683561,1.42247096,113230.0,113220.0,0.52515377]
[1755845683763,1.08468551,113230.0,113220.0,0.52415377]
[1755845684977,1.08468551,113230.0,113220.0,0.52619377]
[1755845685162,1.08468551,113230.0,113220.0,0.52415377]
[1755845686340,1.08468551,113230.0,113220.0,0.702841]
[1755845686575,1.08468551,113230.0,113220.0,0.52619377]
[1755845687797,1.08468551,113230.0,113220.0,0.74738547]
[1755845690644,0.36633654,113230.0,113220.0,0.74738547]
[1755845690869,1.21853907,113230.0,113220.0,0.74738547]
[1755845691109,1.21853907,113230.0,113220.0,0.702841]
[1755845691993,1.04190744,113230.0,113220.0,0.703841]
[1755845692438,1.04190744,113230.0,113220.0,0.704841]
[1755845692636,1.21853907,113230.0,113220.0,0.704841]
[1755845693109,1.04190744,113230.0,113220.0,0.704841]
[1755845695507,1.04190744,113230.0,113220.0,0.77426043]
[1755845696661,1.04190744,113230.0,113220.0,0.704841]
[1755845697550,1.21853907,113230.0,113220.0,0.704841]
[1755845700529,1.04190744,113230.0,113220.0,0.704841]
[1755845702238,0.35944115,113230.0,113220.0,0.704841]
[1755845702439,0.01382483,113240.0,113230.0,0.19408065]
[1755845702661,0.1773013,113250.0,113240.0,0.17661603]
[1755845702875,0.51744613,113250.0,113240.0,0.48637078]
[1755845703642,1.19301703,113250.0,113240.0,0.30975475]
[1755845703846,1.19251703,113250.0,113240.0,0.48637078]
[1755845704055,1.19251703,113250.0,113240.0,0.5038198]
[1755845704253,1.19251703,113250.0,113240.0,0.51423272]
[1755845704254,1.21510577,113250.0,113240.0,0.51423272]
[1755845704464,1.21510491,113250.0,113240.0,0.51423272]
[1755845704904,1.21510491,113250.0,113240.0,0.5038198]
[1755845705534,1.22892767,113250.0,113240.0,0.5038198]
[1755845705743,1.21510491,113250.0,113240.0,0.32205377]
[1755845705954,1.21610491,113250.0,113240.0,0.32507377]
[1755845706381,1.21610491,113250.0,113240.0,0.59177377]
[1755845706836,0.54053401,113250.0,113240.0,0.59177377]
[1755845707059,1.21610491,113250.0,113240.0,0.59177377]
[1755845709129,1.22992773,113250.0,113240.0,0.59177377]
[1755845710811,0.03775639,113250.0,113240.0,0.80493945]
[1755845711019,0.37554184,113250.0,113240.0,0.80493945]
[1755845711231,0.71332729,113250.0,113240.0,0.80493945]
[1755845711905,0.71232729,113250.0,113240.0,0.80493945]
[1755845712336,0.37454184,113250.0,113240.0,0.80593945]
[1755845712586,0.37454184,113250.0,113240.0,0.83249045]
[1755845713016,0.03675639,113250.0,113240.0,0.83249045]
[1755845713280,0.37382184,113250.0,113240.0,0.83249045]
[1755845713811,0.35160827,113250.0,113240.0,0.84099045]
[1755845715258,0.01382282,113250.0,113240.0,0.84099045]
[1755845715486,0.35160827,113250.0,113240.0,0.84099045]
[1755845715692,0.35160827,113250.0,113240.0,0.88157253]
[1755845716215,0.01382282,113250.0,113240.0,0.88157253]
[1755845716419,0.35160827,113250.0,113240.0,0.88157253]
[1755845720266,0.01382282,113250.0,113240.0,0.87307253]
[1755845720649,0.35160827,113250.0,113240.0,0.87307253]
[1755845721214,0.01382282,113250.0,113240.0,0.87307253]
[1755845721417,0.35160827,113250.0,113240.0,0.87307253]
[1755845722246,0.00214752,113250.0,113240.0,0.61487253]
[1755845722455,0.33778545,113250.0,113240.0,0.63987253]
[1755845722819,0.33798545,113260.0,113250.0,0.19404946]
[1755845723020,0.33846813,113260.0,113250.0,0.51727151]
[1755845723354,0.67625358,113260.0,113250.0,0.51727151]
[1755845724010,0.00068268,113260.0,113250.0,0.51727151]
[1755845724222,0.67625358,113260.0,113250.0,0.54381751]
[1755845724435,0.33821622,113260.0,113250.0,0.54381751]
[1755845724855,0.36072457,113260.0,113250.0,0.54381751]
[1755845725513,0.36072457,113260.0,113250.0,0.54481751]
[1755845726129,0.36072457,113260.0,113250.0,0.54581751]
[1755845726634,0.33821622,113260.0,113250.0,0.54581751]
[1755845729009,0.36123814,113260.0,113250.0,0.54581751]
[1755845729804,0.0237046,113260.0,113250.0,0.54581751]
[1755845729999,0.36123814,113260.0,113250.0,0.54581751]
[1755845732415,0.33821622,113260.0,113250.0,0.54581751]
[1755845733027,0.33821622,113260.0,113250.0,1.25981751]
[1755845737034,0.36087474,113260.0,113250.0,1.25981751]
[1755845739474,0.12265561,113260.0,113250.0,1.25981751]
[1755845740826,0.12265561,113260.0,113250.0,1.25765751]
[1755845741033,0.29924045,113260.0,113250.0,1.25464751]
[1755845741280,0.12265561,113260.0,113250.0,1.25464751]
[1755845741590,0.29924045,113260.0,113250.0,1.25765751]
[1755845741813,0.12265561,113260.0,113250.0,1.25765751]
[1755845742703,0.29924045,113260.0,113250.0,1.17601021]
[1755845744469,0.87443722,113260.0,113250.0,1.17601021]
[1755845744677,0.69785238,113260.0,113250.0,1.17805021]
[1755845744887,0.69785238,113260.0,113250.0,0.73075021]
[1755845746322,0.87443722,113260.0,113250.0,0.73075021]
[1755845747994,0.87443722,113260.0,113250.0,0.72566021]
[1755845748253,0.88825765,113260.0,113250.0,0.52251377]
[1755845749211,0.87443722,113260.0,113250.0,0.52251377]
[1755845751799,0.87443722,113260.0,113250.0,0.52572377]
[1755845752607,0.87443722,113260.0,113250.0,0.70232421]
[1755845753343,0.87443722,113260.0,113250.0,0.70441421]
[1755845757298,0.87443722,113260.0,113250.0,0.37833377]
[1755845757498,0.87443722,113260.0,113250.0,0.52568377]
[1755845758211,0.87443722,113260.0,113250.0,0.70228421]
[1755845759893,0.87443722,113260.0,113250.0,0.52568377]
[1755845760540,1.55203415,113260.0,113250.0,0.37303377]
[1755845760748,1.55203415,113260.0,113250.0,0.35558475]
[1755845760949,1.55203415,113260.0,113250.0,0.4181]
[1755845761318,1.55203415,113260.0,113250.0,0.4171]
[1755845761518,1.57858815,113260.0,113250.0,0.4161]
[1755845762399,1.24126424,113260.0,113250.0,0.4161]
[1755845762841,1.24226424,113260.0,113250.0,0.4161]
[1755845769145,1.25608616,113260.0,113250.0,0.4161]
[1755845770320,1.25608616,113260.0,113250.0,0.4214]
[1755845770750,0.91835272,113260.0,113250.0,0.4214]
[1755845770901,0.91835272,113260.0,113250.0,0.45054801]